[Event "Titled Tuesday Blitz June 28 Late 2022"]
[White "Simonovic, Miroslav"]
[Black "Romanchuk, Viktor"]
[WhiteFideId "919152"]
[BlackFideId "14109271"]
[WhiteElo "2043"]
[BlackElo "2242"]
[Result "0-1"]
[Round "11"]
[TimeControl "180+1"]
[Date "2022.06.29"]
[WhiteClock "0:00:02"]
[BlackClock "0:00:16"]

1. d4 {[%clk 0:03:00]}  d5 {[%clk 0:02:53]} 2. Bg5 {[%clk 0:03:01]}  f6 {[%clk 0:02:12]} 3. Bh4 {[%clk 0:03:00]}  Nh6 {[%clk 0:02:12]} 4. f3 {[%clk 0:03:01]}  c5 {[%clk 0:02:11]} 5. c3 {[%clk 0:03:00]}  cxd4 {[%clk 0:02:11]} 6. cxd4 {[%clk 0:03:01]}  Qb6 {[%clk 0:02:11]} 7. Qd2 {[%clk 0:02:57]}  Nc6 {[%clk 0:02:08]} 8. Bf2 {[%clk 0:02:56]}  e6 {[%clk 0:02:05]} 9. Nc3 {[%clk 0:02:54]}  Be7 {[%clk 0:02:05]} 10. e4 {[%clk 0:02:48]}  Qa5 {[%clk 0:01:56]} 11. a3 {[%clk 0:02:35]}  O-O {[%clk 0:01:55]} 12. Bd3 {[%clk 0:02:15]}  dxe4 {[%clk 0:01:52]} 13. fxe4 {[%clk 0:02:14]}  Ng4 {[%clk 0:01:52]} 14. Nge2 {[%clk 0:02:08]}  Nxf2 {[%clk 0:01:50]} 15. Kxf2 {[%clk 0:02:09]}  Rd8 {[%clk 0:01:44]} 16. Bc4 {[%clk 0:02:07]}  Nxd4 {[%clk 0:01:41]} 17. Nxd4 {[%clk 0:02:05]}  Qc5 {[%clk 0:01:41]} 18. Bxe6+ {[%clk 0:01:41]}  Bxe6 {[%clk 0:01:38]} 19. Ne2 {[%clk 0:01:39]}  Bg4 {[%clk 0:01:19]} 20. Rhd1 {[%clk 0:01:37]}  Rd7 {[%clk 0:01:09]} 21. b4 {[%clk 0:01:34]}  Qb6 {[%clk 0:01:07]} 22. h3 {[%clk 0:01:09]}  Bh5 {[%clk 0:00:50]} 23. g4 {[%clk 0:01:08]}  Bg6 {[%clk 0:00:49]} 24. Qe3 {[%clk 0:00:45]}  Rad8 {[%clk 0:00:46]} 25. Rd2 {[%clk 0:00:43]}  a5 {[%clk 0:00:37]} 26. bxa5 {[%clk 0:00:37]}  Qxa5 {[%clk 0:00:35]} 27. Nb3 {[%clk 0:00:27]}  Qa4 {[%clk 0:00:30]} 28. Rxd7 {[%clk 0:00:26]}  Rxd7 {[%clk 0:00:31]} 29. Nbd4 {[%clk 0:00:19]}  Bc5 {[%clk 0:00:30]} 30. Rd1 {[%clk 0:00:17]}  Qxa3 {[%clk 0:00:27]} 31. Qxa3 {[%clk 0:00:16]}  Bxa3 {[%clk 0:00:28]} 32. Kf3 {[%clk 0:00:16]}  Bc5 {[%clk 0:00:27]} 33. Rd2 {[%clk 0:00:15]}  b6 {[%clk 0:00:25]} 34. Nb3 {[%clk 0:00:15]}  Rxd2 {[%clk 0:00:23]} 35. Nxd2 {[%clk 0:00:16]}  Kf7 {[%clk 0:00:23]} 36. Nf4 {[%clk 0:00:12]}  Ke7 {[%clk 0:00:23]} 37. Nd5+ {[%clk 0:00:11]}  Kd6 {[%clk 0:00:23]} 38. Nc4+ {[%clk 0:00:11]}  Kc6 {[%clk 0:00:23]} 39. h4 {[%clk 0:00:09]}  Bf7 {[%clk 0:00:22]} 40. Nde3 {[%clk 0:00:09]}  b5 {[%clk 0:00:21]} 41. Nd2 {[%clk 0:00:07]}  Bxe3 {[%clk 0:00:20]} 42. Kxe3 {[%clk 0:00:07]}  Kc5 {[%clk 0:00:21]} 43. Kd3 {[%clk 0:00:06]}  Bc4+ {[%clk 0:00:21]} 44. Kc3 {[%clk 0:00:06]}  b4+ {[%clk 0:00:21]} 45. Kc2 {[%clk 0:00:06]}  Kd4 {[%clk 0:00:22]} 46. g5 {[%clk 0:00:05]}  fxg5 {[%clk 0:00:20]} 47. hxg5 {[%clk 0:00:06]}  Be6 {[%clk 0:00:17]} 48. Kb2 {[%clk 0:00:03]}  Kd3 {[%clk 0:00:16]} 49. Nf3 {[%clk 0:00:02]}  Kxe4 {[%clk 0:00:16]} 0-1


[Site "https://www.chess.com"]

[Event "Titled Tuesday Blitz June 28 Late 2022"]
[White "Steinberg, Nitzan"]
[Black "Kamsky, Gata"]
[WhiteFideId "2801795"]
[BlackFideId "2000024"]
[WhiteElo "2868"]
[BlackElo "2934"]
[Result "0-1"]
[Round "11"]
[TimeControl "180+1"]
[Date "2022.06.28"]
[WhiteClock "0:00:01"]
[BlackClock "0:00:06"]

1. e4 {[%clk 0:03:00]}  e5 {[%clk 0:02:59]} 2. Nf3 {[%clk 0:03:01]}  Nc6 {[%clk 0:02:58]} 3. Bb5 {[%clk 0:03:01]}  Nf6 {[%clk 0:02:59]} 4. O-O {[%clk 0:03:01]}  Nxe4 {[%clk 0:02:59]} 5. Re1 {[%clk 0:03:02]}  Nd6 {[%clk 0:02:59]} 6. Nxe5 {[%clk 0:03:02]}  Nxe5 {[%clk 0:02:57]} 7. Rxe5+ {[%clk 0:03:03]}  Be7 {[%clk 0:02:58]} 8. Bf1 {[%clk 0:03:04]}  O-O {[%clk 0:02:57]} 9. d4 {[%clk 0:03:04]}  Bf6 {[%clk 0:02:56]} 10. Re1 {[%clk 0:03:05]}  Nf5 {[%clk 0:02:56]} 11. d5 {[%clk 0:03:03]}  d6 {[%clk 0:02:55]} 12. Nd2 {[%clk 0:03:03]}  Bg5 {[%clk 0:02:54]} 13. Ne4 {[%clk 0:03:02]}  Bxc1 {[%clk 0:02:53]} 14. Qxc1 {[%clk 0:03:03]}  Bd7 {[%clk 0:02:50]} 15. Qf4 {[%clk 0:03:01]}  Qh4 {[%clk 0:02:48]} 16. Qd2 {[%clk 0:02:44]}  Qg4 {[%clk 0:02:20]} 17. h3 {[%clk 0:02:34]}  Qg6 {[%clk 0:02:19]} 18. Bd3 {[%clk 0:02:13]}  Nh4 {[%clk 0:02:10]} 19. Ng3 {[%clk 0:01:59]}  Bf5 {[%clk 0:00:55]} 20. Bf1 {[%clk 0:01:58]}  Qf6 {[%clk 0:00:42]} 21. Qf4 {[%clk 0:01:45]}  g5 {[%clk 0:00:32]} 22. Qb4 {[%clk 0:01:39]}  b6 {[%clk 0:00:25]} 23. Re3 {[%clk 0:01:38]}  Bg6 {[%clk 0:00:24]} 24. Rae1 {[%clk 0:01:36]}  a5 {[%clk 0:00:23]} 25. Qa3 {[%clk 0:01:29]}  Qd4 {[%clk 0:00:21]} 26. c4 {[%clk 0:01:17]}  Qd2 {[%clk 0:00:20]} 27. Re7 {[%clk 0:01:03]}  Rac8 {[%clk 0:00:19]} 28. b3 {[%clk 0:00:40]}  Qd4 {[%clk 0:00:17]} 29. Qc1 {[%clk 0:00:38]}  h6 {[%clk 0:00:17]} 30. Rd7 {[%clk 0:00:24]}  Rfd8 {[%clk 0:00:16]} 31. Rde7 {[%clk 0:00:19]}  Kf8 {[%clk 0:00:15]} 32. R7e3 {[%clk 0:00:17]}  Re8 {[%clk 0:00:15]} 33. Ne2 {[%clk 0:00:16]}  Qf6 {[%clk 0:00:14]} 34. Nc3 {[%clk 0:00:14]}  Rxe3 {[%clk 0:00:13]} 35. Qxe3 {[%clk 0:00:15]}  Nf5 {[%clk 0:00:12]} 36. Qd2 {[%clk 0:00:15]}  Qd4 {[%clk 0:00:12]} 37. Qc1 {[%clk 0:00:14]}  Nh4 {[%clk 0:00:10]} 38. Nb5 {[%clk 0:00:14]}  Qf6 {[%clk 0:00:10]} 39. Qe3 {[%clk 0:00:13]}  Nf5 {[%clk 0:00:08]} 40. Qd2 {[%clk 0:00:12]}  Nh4 {[%clk 0:00:08]} 41. Qe3 {[%clk 0:00:12]}  Nf5 {[%clk 0:00:08]} 42. Qf3 {[%clk 0:00:13]}  Kg7 {[%clk 0:00:08]} 43. Bd3 {[%clk 0:00:13]}  Nh4 {[%clk 0:00:08]} 44. Qxf6+ {[%clk 0:00:13]}  Kxf6 {[%clk 0:00:08]} 45. Bxg6 {[%clk 0:00:13]}  Nxg6 {[%clk 0:00:09]} 46. g3 {[%clk 0:00:12]}  Ne5 {[%clk 0:00:09]} 47. Kg2 {[%clk 0:00:11]}  h5 {[%clk 0:00:10]} 48. Re3 {[%clk 0:00:10]}  g4 {[%clk 0:00:10]} 49. h4 {[%clk 0:00:11]}  Ke7 {[%clk 0:00:09]} 50. Nd4 {[%clk 0:00:11]}  Kf6 {[%clk 0:00:09]} 51. Re4 {[%clk 0:00:11]}  Kg6 {[%clk 0:00:09]} 52. Rf4 {[%clk 0:00:11]}  Re8 {[%clk 0:00:08]} 53. Re4 {[%clk 0:00:10]}  f5 {[%clk 0:00:08]} 54. Re3 {[%clk 0:00:09]}  Re7 {[%clk 0:00:08]} 55. Kf1 {[%clk 0:00:08]}  Kf6 {[%clk 0:00:07]} 56. Ke2 {[%clk 0:00:08]}  Ng6 {[%clk 0:00:08]} 57. Re6+ {[%clk 0:00:07]}  Rxe6+ {[%clk 0:00:07]} 58. Nxe6 {[%clk 0:00:08]}  c6 {[%clk 0:00:07]} 59. Nc7 {[%clk 0:00:07]}  c5 {[%clk 0:00:06]} 60. Na8 {[%clk 0:00:07]}  f4 {[%clk 0:00:07]} 61. Nxb6 {[%clk 0:00:07]}  fxg3 {[%clk 0:00:07]} 62. fxg3 {[%clk 0:00:08]}  Ne7 {[%clk 0:00:07]} 63. Na4 {[%clk 0:00:06]}  Nf5 {[%clk 0:00:06]} 64. Kf2 {[%clk 0:00:06]}  Ke5 {[%clk 0:00:07]} 65. Nc3 {[%clk 0:00:07]}  Kd4 {[%clk 0:00:07]} 66. Ne2+ {[%clk 0:00:07]}  Ke5 {[%clk 0:00:07]} 67. Nf4 {[%clk 0:00:07]}  Nxh4 {[%clk 0:00:07]} 68. Nxh5 {[%clk 0:00:03]}  Nf3 {[%clk 0:00:07]} 69. Nf4 {[%clk 0:00:03]}  Kd4 {[%clk 0:00:06]} 70. Ne6+ {[%clk 0:00:03]}  Kc3 {[%clk 0:00:07]} 71. Nc7 {[%clk 0:00:03]}  Kb2 {[%clk 0:00:06]} 72. Ne8 {[%clk 0:00:04]}  Kxa2 {[%clk 0:00:06]} 73. Nxd6 {[%clk 0:00:04]}  Kxb3 {[%clk 0:00:07]} 74. Nf7 {[%clk 0:00:03]}  Kxc4 {[%clk 0:00:05]} 75. d6 {[%clk 0:00:04]}  Nd4 {[%clk 0:00:06]} 76. d7 {[%clk 0:00:04]}  Ne6 {[%clk 0:00:06]} 77. d8=Q {[%clk 0:00:02]}  Nxd8 {[%clk 0:00:05]} 78. Nxd8 {[%clk 0:00:03]}  a4 {[%clk 0:00:06]} 79. Nb7 {[%clk 0:00:01]}  a3 {[%clk 0:00:06]} 80. Na5+ {[%clk 0:00:02]}  Kc3 {[%clk 0:00:06]} 81. Ke3 {[%clk 0:00:01]}  a2 {[%clk 0:00:06]} 0-1


[Site "https://www.chess.com"]

[Event "Titled Tuesday Blitz June 28 Late 2022"]
[White "Tanenbaum, Zachary"]
[Black "Popilski, Gil"]
[WhiteFideId "2060850"]
[BlackFideId "2809060"]
[WhiteElo "2703"]
[BlackElo "2580"]
[Result "0-1"]
[Round "11"]
[TimeControl "180+1"]
[Date "2022.06.28"]
[WhiteClock "0:00:01"]
[BlackClock "0:00:11"]

1. e4 {[%clk 0:03:00]}  c5 {[%clk 0:02:49]} 2. Nf3 {[%clk 0:03:00]}  d6 {[%clk 0:02:48]} 3. d4 {[%clk 0:03:01]}  cxd4 {[%clk 0:02:49]} 4. Nxd4 {[%clk 0:03:01]}  Nf6 {[%clk 0:02:49]} 5. Nc3 {[%clk 0:03:02]}  a6 {[%clk 0:02:50]} 6. Be3 {[%clk 0:03:02]}  e5 {[%clk 0:02:48]} 7. Nb3 {[%clk 0:03:02]}  Be6 {[%clk 0:02:48]} 8. h3 {[%clk 0:03:02]}  Nc6 {[%clk 0:02:48]} 9. f4 {[%clk 0:03:02]}  exf4 {[%clk 0:02:42]} 10. Bxf4 {[%clk 0:03:03]}  Ne5 {[%clk 0:02:41]} 11. Qe2 {[%clk 0:03:03]}  Be7 {[%clk 0:02:41]} 12. O-O-O {[%clk 0:03:03]}  Nfd7 {[%clk 0:02:39]} 13. Kb1 {[%clk 0:03:02]}  O-O {[%clk 0:02:39]} 14. Qe3 {[%clk 0:03:02]}  Rc8 {[%clk 0:02:34]} 15. g4 {[%clk 0:03:02]}  Qc7 {[%clk 0:02:22]} 16. g5 {[%clk 0:02:55]}  b5 {[%clk 0:02:22]} 17. Nd4 {[%clk 0:02:44]}  b4 {[%clk 0:02:13]} 18. Nd5 {[%clk 0:02:43]}  Bxd5 {[%clk 0:02:11]} 19. exd5 {[%clk 0:02:44]}  Rfe8 {[%clk 0:02:10]} 20. Qg3 {[%clk 0:02:14]}  Nc5 {[%clk 0:02:00]} 21. Bxe5 {[%clk 0:01:59]}  dxe5 {[%clk 0:01:59]} 22. Nc6 {[%clk 0:02:00]}  Bd6 {[%clk 0:01:58]} 23. h4 {[%clk 0:01:57]}  Qb6 {[%clk 0:01:53]} 24. Qg4 {[%clk 0:01:52]}  e4 {[%clk 0:01:38]} 25. h5 {[%clk 0:01:51]}  e3 {[%clk 0:01:11]} 26. g6 {[%clk 0:01:49]}  Ne4 {[%clk 0:01:09]} 27. gxf7+ {[%clk 0:01:47]}  Kxf7 {[%clk 0:01:08]} 28. Rg1 {[%clk 0:01:39]}  Bf8 {[%clk 0:00:52]} 29. Bc4 {[%clk 0:01:22]}  Qc5 {[%clk 0:00:21]} 30. Bb3 {[%clk 0:01:10]}  Kg8 {[%clk 0:00:16]} 31. Nd4 {[%clk 0:00:28]}  Nd2+ {[%clk 0:00:14]} 32. Ka1 {[%clk 0:00:17]}  Re4 {[%clk 0:00:13]} 33. d6+ {[%clk 0:00:04]}  Nxb3+ {[%clk 0:00:13]} 34. Nxb3 {[%clk 0:00:03]}  Rxg4 {[%clk 0:00:12]} 35. Nxc5 {[%clk 0:00:03]}  e2 {[%clk 0:00:11]} 36. Rde1 {[%clk 0:00:01]}  Rxg1 {[%clk 0:00:11]} 37. Rxg1 {[%clk 0:00:01]}  Rxc5 {[%clk 0:00:11]} 0-1


[Site "https://www.chess.com"]

[Event "Titled Tuesday Blitz June 28 Late 2022"]
[White "Thiel, Thomas"]
[Black "Colpe, Malte"]
[WhiteFideId "4615964"]
[BlackFideId "24623075"]
[WhiteElo "2250"]
[BlackElo "2328"]
[Result "0-1"]
[Round "11"]
[TimeControl "180+1"]
[Date "2022.06.29"]
[WhiteClock "0:00:30"]
[BlackClock "0:00:28"]

1. e4 {[%clk 0:03:00]}  e5 {[%clk 0:02:58]} 2. Nf3 {[%clk 0:02:59]}  d5 {[%clk 0:02:57]} 3. d4 {[%clk 0:02:55]}  dxe4 {[%clk 0:02:56]} 4. Nxe5 {[%clk 0:02:55]}  Bd6 {[%clk 0:02:57]} 5. Nc3 {[%clk 0:02:49]}  Bxe5 {[%clk 0:02:57]} 6. dxe5 {[%clk 0:02:49]}  Qxd1+ {[%clk 0:02:58]} 7. Kxd1 {[%clk 0:02:48]}  Bf5 {[%clk 0:02:58]} 8. Bc4 {[%clk 0:02:46]}  Nc6 {[%clk 0:02:58]} 9. Be3 {[%clk 0:02:34]}  Nxe5 {[%clk 0:02:54]} 10. Bd5 {[%clk 0:02:33]}  O-O-O {[%clk 0:02:50]} 11. Kc1 {[%clk 0:02:28]}  Nf6 {[%clk 0:02:50]} 12. Rd1 {[%clk 0:02:24]}  Nfg4 {[%clk 0:02:36]} 13. Bd4 {[%clk 0:02:12]}  c6 {[%clk 0:02:13]} 14. Bb3 {[%clk 0:02:10]}  f6 {[%clk 0:02:05]} 15. h3 {[%clk 0:02:09]}  Nh6 {[%clk 0:01:57]} 16. g4 {[%clk 0:02:05]}  Bg6 {[%clk 0:01:56]} 17. Bxe5 {[%clk 0:02:03]}  fxe5 {[%clk 0:01:57]} 18. g5 {[%clk 0:01:51]}  Nf7 {[%clk 0:01:47]} 19. Bxf7 {[%clk 0:01:48]}  Bxf7 {[%clk 0:01:48]} 20. Nxe4 {[%clk 0:01:47]}  Bh5 {[%clk 0:01:46]} 21. Rxd8+ {[%clk 0:01:42]}  Rxd8 {[%clk 0:01:47]} 22. b3 {[%clk 0:01:41]}  Bf3 {[%clk 0:01:45]} 23. Ng3 {[%clk 0:01:37]}  Kd7 {[%clk 0:01:19]} 24. Kb2 {[%clk 0:01:36]}  Ke6 {[%clk 0:01:20]} 25. Kc3 {[%clk 0:01:36]}  e4 {[%clk 0:01:18]} 26. Re1 {[%clk 0:01:35]}  Ke5 {[%clk 0:01:17]} 27. Nxe4 {[%clk 0:01:32]}  Bxe4 {[%clk 0:01:17]} 28. f3 {[%clk 0:01:32]}  Rd4 {[%clk 0:01:17]} 29. h4 {[%clk 0:01:24]}  Kf5 {[%clk 0:01:02]} 30. fxe4+ {[%clk 0:01:22]}  Rxe4 {[%clk 0:01:03]} 31. Rf1+ {[%clk 0:01:20]}  Kg6 {[%clk 0:00:59]} 32. Rh1 {[%clk 0:01:02]}  Kh5 {[%clk 0:00:59]} 33. Rf1 {[%clk 0:01:01]}  Re7 {[%clk 0:00:48]} 34. Rf4 {[%clk 0:01:00]}  g6 {[%clk 0:00:40]} 35. a4 {[%clk 0:00:58]}  a5 {[%clk 0:00:38]} 36. b4 {[%clk 0:00:57]}  axb4+ {[%clk 0:00:38]} 37. Kxb4 {[%clk 0:00:57]}  b6 {[%clk 0:00:37]} 38. c4 {[%clk 0:00:55]}  Re1 {[%clk 0:00:35]} 39. c5 {[%clk 0:00:53]}  Rb1+ {[%clk 0:00:35]} 40. Kc3 {[%clk 0:00:52]}  Rc1+ {[%clk 0:00:35]} 41. Kd2 {[%clk 0:00:45]}  Rxc5 {[%clk 0:00:36]} 42. Rb4 {[%clk 0:00:44]}  b5 {[%clk 0:00:32]} 43. a5 {[%clk 0:00:42]}  Rd5+ {[%clk 0:00:30]} 44. Ke3 {[%clk 0:00:38]}  Rd7 {[%clk 0:00:31]} 45. Rd4 {[%clk 0:00:35]}  Ra7 {[%clk 0:00:30]} 46. Rd6 {[%clk 0:00:31]}  Rxa5 {[%clk 0:00:28]} 47. Rxc6 {[%clk 0:00:30]}  Kxh4 {[%clk 0:00:28]} 0-1


[Site "https://www.chess.com"]

[Event "Titled Tuesday Blitz June 28 Late 2022"]
[White "Vlassov, Nikolai"]
[Black "Silvestre, Christian"]
[WhiteFideId "4103360"]
[BlackFideId "30956269"]
[WhiteElo "2407"]
[BlackElo "2349"]
[Result "0-1"]
[Round "11"]
[TimeControl "180+1"]
[Date "2022.06.29"]
[WhiteClock "0:00:03"]
[BlackClock "0:00:43"]

1. e4 {[%clk 0:03:00]}  c6 {[%clk 0:02:55]} 2. d4 {[%clk 0:03:00]}  d5 {[%clk 0:02:51]} 3. e5 {[%clk 0:03:01]}  a6 {[%clk 0:02:50]} 4. f4 {[%clk 0:02:53]}  Bf5 {[%clk 0:02:49]} 5. Nf3 {[%clk 0:02:50]}  h6 {[%clk 0:02:48]} 6. Bd3 {[%clk 0:02:46]}  Bxd3 {[%clk 0:02:47]} 7. Qxd3 {[%clk 0:02:46]}  e6 {[%clk 0:02:48]} 8. f5 {[%clk 0:02:46]}  exf5 {[%clk 0:02:47]} 9. Qxf5 {[%clk 0:02:45]}  Qd7 {[%clk 0:02:47]} 10. Qd3 {[%clk 0:02:40]}  c5 {[%clk 0:02:43]} 11. O-O {[%clk 0:02:34]}  Nc6 {[%clk 0:02:43]} 12. c3 {[%clk 0:02:33]}  Nge7 {[%clk 0:02:38]} 13. Be3 {[%clk 0:02:31]}  Ng6 {[%clk 0:02:37]} 14. Nbd2 {[%clk 0:02:29]}  Be7 {[%clk 0:02:33]} 15. Rf2 {[%clk 0:02:29]}  c4 {[%clk 0:02:31]} 16. Qc2 {[%clk 0:02:27]}  b5 {[%clk 0:02:30]} 17. Raf1 {[%clk 0:02:26]}  b4 {[%clk 0:02:27]} 18. h3 {[%clk 0:01:59]}  a5 {[%clk 0:02:25]} 19. Nh2 {[%clk 0:01:58]}  O-O {[%clk 0:02:22]} 20. Ng4 {[%clk 0:01:27]}  h5 {[%clk 0:02:20]} 21. Nh2 {[%clk 0:01:22]}  a4 {[%clk 0:02:20]} 22. Qd1 {[%clk 0:01:10]}  a3 {[%clk 0:02:17]} 23. b3 {[%clk 0:00:42]}  bxc3 {[%clk 0:02:09]} 24. Nb1 {[%clk 0:00:36]}  cxb3 {[%clk 0:01:51]} 25. Qxb3 {[%clk 0:00:36]}  Na5 {[%clk 0:01:51]} 26. Qxc3 {[%clk 0:00:34]}  Nc4 {[%clk 0:01:51]} 27. Nd2 {[%clk 0:00:22]}  Rac8 {[%clk 0:01:34]} 28. Nxc4 {[%clk 0:00:19]}  Rxc4 {[%clk 0:01:35]} 29. Qd3 {[%clk 0:00:18]}  Qc6 {[%clk 0:01:27]} 30. Qd1 {[%clk 0:00:18]}  h4 {[%clk 0:01:22]} 31. Ng4 {[%clk 0:00:18]}  Qa4 {[%clk 0:01:16]} 32. Qf3 {[%clk 0:00:16]}  Rc3 {[%clk 0:01:08]} 33. Qf5 {[%clk 0:00:15]}  Qc6 {[%clk 0:01:05]} 34. Bg5 {[%clk 0:00:15]}  Qe6 {[%clk 0:01:03]} 35. Bxe7 {[%clk 0:00:10]}  Qxf5 {[%clk 0:01:03]} 36. Rxf5 {[%clk 0:00:10]}  Nxe7 {[%clk 0:01:03]} 37. R5f3 {[%clk 0:00:09]}  Rxf3 {[%clk 0:00:58]} 38. Rxf3 {[%clk 0:00:10]}  Ra8 {[%clk 0:00:58]} 39. Ne3 {[%clk 0:00:10]}  Nc6 {[%clk 0:00:56]} 40. Nxd5 {[%clk 0:00:10]}  Nxd4 {[%clk 0:00:57]} 41. Rd3 {[%clk 0:00:09]}  Ne6 {[%clk 0:00:51]} 42. Nc3 {[%clk 0:00:08]}  Nc5 {[%clk 0:00:50]} 43. Re3 {[%clk 0:00:06]}  Rb8 {[%clk 0:00:47]} 44. Nd5 {[%clk 0:00:03]}  Rb1+ {[%clk 0:00:43]} 0-1


[Site "https://www.chess.com"]

[Event "Titled Tuesday Blitz June 28 Late 2022"]
[White "Yoo, Christopher Woojin"]
[Black "Keymer, Vincent"]
[WhiteFideId "30909694"]
[BlackFideId "12940690"]
[WhiteElo "2987"]
[BlackElo "2904"]
[Result "0-1"]
[Round "11"]
[TimeControl "180+1"]
[Date "2022.06.28"]
[WhiteClock "0:00:06"]
[BlackClock "0:00:14"]

1. d4 {[%clk 0:02:58]}  Nf6 {[%clk 0:02:59]} 2. c4 {[%clk 0:02:58]}  e6 {[%clk 0:03:00]} 3. Nc3 {[%clk 0:02:58]}  Bb4 {[%clk 0:03:00]} 4. Qb3 {[%clk 0:02:54]}  a5 {[%clk 0:02:49]} 5. a3 {[%clk 0:02:38]}  Bxc3+ {[%clk 0:02:48]} 6. Qxc3 {[%clk 0:02:39]}  a4 {[%clk 0:02:49]} 7. Bg5 {[%clk 0:02:17]}  h6 {[%clk 0:02:37]} 8. Bh4 {[%clk 0:02:16]}  d6 {[%clk 0:02:37]} 9. e3 {[%clk 0:02:15]}  Nbd7 {[%clk 0:01:58]} 10. Bd3 {[%clk 0:02:14]}  b6 {[%clk 0:01:52]} 11. Ne2 {[%clk 0:02:13]}  Bb7 {[%clk 0:01:51]} 12. f3 {[%clk 0:02:14]}  c5 {[%clk 0:01:51]} 13. O-O {[%clk 0:02:10]}  O-O {[%clk 0:01:46]} 14. e4 {[%clk 0:02:04]}  e5 {[%clk 0:00:59]} 15. d5 {[%clk 0:01:48]}  Nxd5 {[%clk 0:00:51]} 16. Bxd8 {[%clk 0:01:21]}  Nxc3 {[%clk 0:00:51]} 17. Nxc3 {[%clk 0:01:22]}  Rfxd8 {[%clk 0:00:50]} 18. Bc2 {[%clk 0:01:19]}  Bc6 {[%clk 0:00:50]} 19. Rfd1 {[%clk 0:01:16]}  Nf8 {[%clk 0:00:50]} 20. Nd5 {[%clk 0:01:09]}  Bxd5 {[%clk 0:00:50]} 21. exd5 {[%clk 0:01:03]}  g6 {[%clk 0:00:50]} 22. h4 {[%clk 0:00:56]}  Kg7 {[%clk 0:00:47]} 23. Kf2 {[%clk 0:00:56]}  h5 {[%clk 0:00:44]} 24. g4 {[%clk 0:00:56]}  hxg4 {[%clk 0:00:37]} 25. fxg4 {[%clk 0:00:57]}  Nd7 {[%clk 0:00:37]} 26. Kg3 {[%clk 0:00:57]}  Rdb8 {[%clk 0:00:33]} 27. Bd3 {[%clk 0:00:54]}  Re8 {[%clk 0:00:32]} 28. Rf1 {[%clk 0:00:50]}  e4 {[%clk 0:00:30]} 29. Be2 {[%clk 0:00:51]}  Re5 {[%clk 0:00:17]} 30. Rae1 {[%clk 0:00:47]}  f6 {[%clk 0:00:17]} 31. Bd1 {[%clk 0:00:44]}  Ra5 {[%clk 0:00:16]} 32. Rf2 {[%clk 0:00:40]}  b5 {[%clk 0:00:16]} 33. cxb5 {[%clk 0:00:39]}  Nb6 {[%clk 0:00:16]} 34. Ref1 {[%clk 0:00:33]}  Nxd5 {[%clk 0:00:16]} 35. Be2 {[%clk 0:00:30]}  Ne3 {[%clk 0:00:10]} 36. Rc1 {[%clk 0:00:27]}  c4 {[%clk 0:00:11]} 37. Bxc4 {[%clk 0:00:25]}  Rc5 {[%clk 0:00:11]} 38. g5 {[%clk 0:00:09]}  f5 {[%clk 0:00:10]} 39. h5 {[%clk 0:00:08]}  gxh5 {[%clk 0:00:10]} 40. b6 {[%clk 0:00:02]}  Nxc4 {[%clk 0:00:10]} 41. b7 {[%clk 0:00:02]}  Rab5 {[%clk 0:00:10]} 42. Rfc2 {[%clk 0:00:03]}  d5 {[%clk 0:00:10]} 43. Kf4 {[%clk 0:00:02]}  Rxb7 {[%clk 0:00:10]} 44. Rh2 {[%clk 0:00:02]}  Kg6 {[%clk 0:00:10]} 45. Rch1 {[%clk 0:00:02]}  Rh7 {[%clk 0:00:10]} 46. Rc2 {[%clk 0:00:01]}  d4 {[%clk 0:00:11]} 47. Rhc1 {[%clk 0:00:01]}  Rhc7 {[%clk 0:00:11]} 48. Rh2 {[%clk 0:00:02]}  d3 {[%clk 0:00:11]} 49. Rch1 {[%clk 0:00:02]}  Rh7 {[%clk 0:00:11]} 50. Rc1 {[%clk 0:00:02]}  d2 {[%clk 0:00:12]} 51. Rxd2 {[%clk 0:00:02]}  Nxd2 {[%clk 0:00:11]} 52. Rxc5 {[%clk 0:00:02]}  Rf7 {[%clk 0:00:10]} 53. Rc6+ {[%clk 0:00:03]}  Kg7 {[%clk 0:00:11]} 54. Rh6 {[%clk 0:00:04]}  Nc4 {[%clk 0:00:10]} 55. Rxh5 {[%clk 0:00:04]}  Nxb2 {[%clk 0:00:10]} 56. Rh6 {[%clk 0:00:05]}  Nd3+ {[%clk 0:00:11]} 57. Ke3 {[%clk 0:00:05]}  Ne5 {[%clk 0:00:11]} 58. Kf4 {[%clk 0:00:02]}  Ng6+ {[%clk 0:00:11]} 59. Ke3 {[%clk 0:00:03]}  Rd7 {[%clk 0:00:11]} 60. Rh1 {[%clk 0:00:02]}  Rd3+ {[%clk 0:00:12]} 61. Kf2 {[%clk 0:00:03]}  f4 {[%clk 0:00:12]} 62. Rb1 {[%clk 0:00:04]}  Ne5 {[%clk 0:00:12]} 63. Rb5 {[%clk 0:00:03]}  Ng4+ {[%clk 0:00:12]} 64. Ke2 {[%clk 0:00:04]}  f3+ {[%clk 0:00:13]} 65. Ke1 {[%clk 0:00:05]}  f2+ {[%clk 0:00:13]} 66. Ke2 {[%clk 0:00:05]}  Re3+ {[%clk 0:00:14]} 67. Kd2 {[%clk 0:00:06]}  f1=Q {[%clk 0:00:14]} 0-1


[Site "https://www.chess.com"]

[Event "Titled Tuesday Blitz June 28 Late 2022"]
[White "Zhigalko, Sergei"]
[Black "Papp, Levente"]
[WhiteFideId "13502956"]
[BlackFideId "751243"]
[WhiteElo "2810"]
[BlackElo "2620"]
[Result "1-0"]
[Round "11"]
[TimeControl "180+1"]
[Date "2022.06.28"]
[WhiteClock "0:02:04"]
[BlackClock "0:01:19"]

1. e4 {[%clk 0:03:00]}  e6 {[%clk 0:02:55]} 2. d4 {[%clk 0:03:01]}  d5 {[%clk 0:02:54]} 3. e5 {[%clk 0:03:01]}  c5 {[%clk 0:02:54]} 4. c3 {[%clk 0:03:02]}  Nc6 {[%clk 0:02:54]} 5. Nf3 {[%clk 0:03:02]}  Bd7 {[%clk 0:02:54]} 6. Be2 {[%clk 0:03:02]}  Rc8 {[%clk 0:02:53]} 7. O-O {[%clk 0:03:02]}  a6 {[%clk 0:02:48]} 8. dxc5 {[%clk 0:03:02]}  Bxc5 {[%clk 0:02:48]} 9. c4 {[%clk 0:03:03]}  Nge7 {[%clk 0:02:40]} 10. Nc3 {[%clk 0:03:03]}  Qa5 {[%clk 0:02:15]} 11. Bd2 {[%clk 0:02:47]}  Qd8 {[%clk 0:02:06]} 12. Bf4 {[%clk 0:02:34]}  Qa5 {[%clk 0:02:04]} 13. a3 {[%clk 0:02:29]}  dxc4 {[%clk 0:01:55]} 14. Bxc4 {[%clk 0:02:27]}  Ng6 {[%clk 0:01:35]} 15. Bg3 {[%clk 0:02:14]}  Qc7 {[%clk 0:01:29]} 16. Ne4 {[%clk 0:02:04]}  O-O {[%clk 0:01:19]} 17. Nxc5 {[%clk 0:02:04]} 1-0


[Site "https://www.chess.com"]